[Event "Titled Tuesday Blitz November 07 Early 2023"]
[White "Aradhya, Garg"]
[Black "Dwilewicz, Katarzyna"]
[WhiteFideId "25006746"]
[BlackFideId "1148486"]
[WhiteElo "2701"]
[BlackElo "2385"]
[Result "1-0"]
[Round "1"]
[TimeControl "180+1"]
[Date "2023.11.07"]
[WhiteClock "0:01:35"]
[BlackClock "0:00:24"]
[Board "127"]

1. d4 {[%clk 0:03:00]}  d5 {[%clk 0:02:58]} 2. c4 {[%clk 0:03:01]}  dxc4 {[%clk 0:02:57]} 3. Nf3 {[%clk 0:03:00]}  Nf6 {[%clk 0:02:57]} 4. e3 {[%clk 0:03:00]}  Bg4 {[%clk 0:02:56]} 5. Bxc4 {[%clk 0:03:00]}  e6 {[%clk 0:02:56]} 6. h3 {[%clk 0:02:58]}  Bh5 {[%clk 0:02:56]} 7. Nc3 {[%clk 0:02:57]}  a6 {[%clk 0:02:53]} 8. g4 {[%clk 0:02:55]}  Bg6 {[%clk 0:02:52]} 9. Ne5 {[%clk 0:02:55]}  Nbd7 {[%clk 0:02:47]} 10. Nxg6 {[%clk 0:02:53]}  hxg6 {[%clk 0:02:47]} 11. Bd2 {[%clk 0:02:54]}  b5 {[%clk 0:02:39]} 12. Bb3 {[%clk 0:02:53]}  c5 {[%clk 0:02:35]} 13. Qf3 {[%clk 0:02:52]}  Nb6 {[%clk 0:02:27]} 14. O-O-O {[%clk 0:02:49]}  c4 {[%clk 0:02:26]} 15. Bc2 {[%clk 0:02:49]}  b4 {[%clk 0:02:25]} 16. Ne4 {[%clk 0:02:49]}  Nfd5 {[%clk 0:02:21]} 17. Kb1 {[%clk 0:02:44]}  Be7 {[%clk 0:02:18]} 18. Nc5 {[%clk 0:02:41]}  Qc8 {[%clk 0:02:14]} 19. e4 {[%clk 0:02:41]}  Nf6 {[%clk 0:01:42]} 20. Bxb4 {[%clk 0:02:40]}  a5 {[%clk 0:01:42]} 21. Bc3 {[%clk 0:02:32]}  Nbd7 {[%clk 0:01:32]} 22. Nxd7 {[%clk 0:02:29]}  Nxd7 {[%clk 0:01:32]} 23. d5 {[%clk 0:02:29]}  e5 {[%clk 0:01:31]} 24. d6 {[%clk 0:02:26]}  Bg5 {[%clk 0:01:27]} 25. Ba4 {[%clk 0:02:26]}  O-O {[%clk 0:01:18]} 26. Bxd7 {[%clk 0:02:25]}  Qxd7 {[%clk 0:01:18]} 27. Bxe5 {[%clk 0:02:26]}  Rfe8 {[%clk 0:01:13]} 28. Bc3 {[%clk 0:02:26]}  a4 {[%clk 0:01:13]} 29. a3 {[%clk 0:02:26]}  Rab8 {[%clk 0:01:10]} 30. h4 {[%clk 0:02:26]}  Bd8 {[%clk 0:00:56]} 31. h5 {[%clk 0:02:21]}  Rb3 {[%clk 0:00:53]} 32. hxg6 {[%clk 0:02:21]}  fxg6 {[%clk 0:00:47]} 33. Qh3 {[%clk 0:02:17]}  Bf6 {[%clk 0:00:32]} 34. g5 {[%clk 0:01:36]}  Bxc3 {[%clk 0:00:24]} 35. Qxd7 {[%clk 0:01:35]} 1-0


[Site "https://www.chess.com"]

[Event "Titled Tuesday Blitz November 07 Early 2023"]
[White "Krallis, Christos"]
[Black "Kaminski, Victor"]
[WhiteFideId "4298896"]
[BlackFideId "1131630"]
[WhiteElo "2698"]
[BlackElo "2383"]
[Result "1/2-1/2"]
[Round "1"]
[TimeControl "180+1"]
[Date "2023.11.07"]
[WhiteClock "0:00:25"]
[BlackClock "0:00:11"]
[Board "129"]

1. b3 {[%clk 0:02:58]}  e6 {[%clk 0:02:57]} 2. Bb2 {[%clk 0:02:58]}  Nf6 {[%clk 0:02:57]} 3. Nc3 {[%clk 0:02:54]}  c5 {[%clk 0:02:54]} 4. e4 {[%clk 0:02:54]}  Nc6 {[%clk 0:02:54]} 5. Nf3 {[%clk 0:02:50]}  Be7 {[%clk 0:02:52]} 6. e5 {[%clk 0:02:50]}  Nd5 {[%clk 0:02:52]} 7. Bb5 {[%clk 0:02:44]}  Nxc3 {[%clk 0:02:48]} 8. Bxc3 {[%clk 0:02:43]}  O-O {[%clk 0:02:48]} 9. h4 {[%clk 0:02:41]}  f5 {[%clk 0:02:47]} 10. Qe2 {[%clk 0:02:32]}  Qc7 {[%clk 0:02:34]} 11. O-O-O {[%clk 0:02:30]}  a6 {[%clk 0:02:32]} 12. Bd3 {[%clk 0:02:21]}  b5 {[%clk 0:02:30]} 13. g4 {[%clk 0:02:20]}  c4 {[%clk 0:02:13]} 14. bxc4 {[%clk 0:02:09]}  bxc4 {[%clk 0:02:12]} 15. Bxc4 {[%clk 0:02:08]}  Ba3+ {[%clk 0:02:11]} 16. Kb1 {[%clk 0:02:08]}  Rb8+ {[%clk 0:02:09]} 17. Bb3 {[%clk 0:02:07]}  fxg4 {[%clk 0:02:03]} 18. Ng5 {[%clk 0:02:06]}  a5 {[%clk 0:01:56]} 19. Qe4 {[%clk 0:02:05]}  Rf5 {[%clk 0:01:42]} 20. Bb2 {[%clk 0:02:05]}  g6 {[%clk 0:01:24]} 21. Bxa3 {[%clk 0:01:58]}  Nxe5 {[%clk 0:01:21]} 22. Bb2 {[%clk 0:01:15]}  Bb7 {[%clk 0:01:11]} 23. Qd4 {[%clk 0:01:06]}  Bxh1 {[%clk 0:01:08]} 24. Nxe6 {[%clk 0:00:55]}  dxe6 {[%clk 0:00:35]} 25. Bxe6+ {[%clk 0:00:55]}  Kf8 {[%clk 0:00:09]} 26. Bxf5 {[%clk 0:00:45]}  gxf5 {[%clk 0:00:08]} 27. Rxh1 {[%clk 0:00:45]}  Rb4 {[%clk 0:00:04]} 28. c4 {[%clk 0:00:32]}  Qb8 {[%clk 0:00:01]} 29. d3 {[%clk 0:00:18]}  Nxd3 {[%clk 0:00:01]} 30. Qh8+ {[%clk 0:00:14]}  Kf7 {[%clk 0:00:01]} 31. Qf6+ {[%clk 0:00:15]}  Kg8 {[%clk 0:00:01]} 32. Qe6+ {[%clk 0:00:15]}  Kf8 {[%clk 0:00:01]} 33. Qxf5+ {[%clk 0:00:15]}  Kg8 {[%clk 0:00:01]} 34. Qxg4+ {[%clk 0:00:14]}  Kf7 {[%clk 0:00:02]} 35. Qf5+ {[%clk 0:00:15]}  Ke8 {[%clk 0:00:02]} 36. Qe4+ {[%clk 0:00:15]}  Kf7 {[%clk 0:00:03]} 37. Qd5+ {[%clk 0:00:15]}  Kf8 {[%clk 0:00:03]} 38. Qxd3 {[%clk 0:00:12]}  Rxb2+ {[%clk 0:00:03]} 39. Ka1 {[%clk 0:00:12]}  Qe5 {[%clk 0:00:04]} 40. Qd8+ {[%clk 0:00:12]}  Kf7 {[%clk 0:00:04]} 41. Qd7+ {[%clk 0:00:12]}  Kf8 {[%clk 0:00:05]} 42. Qd8+ {[%clk 0:00:10]}  Kf7 {[%clk 0:00:05]} 43. Qd5+ {[%clk 0:00:10]}  Qxd5 {[%clk 0:00:06]} 44. cxd5 {[%clk 0:00:11]}  Rxf2 {[%clk 0:00:06]} 45. Rd1 {[%clk 0:00:11]}  Ke7 {[%clk 0:00:07]} 46. d6+ {[%clk 0:00:10]}  Kd7 {[%clk 0:00:07]} 47. Rd5 {[%clk 0:00:11]}  a4 {[%clk 0:00:05]} 48. a3 {[%clk 0:00:10]}  Rf1+ {[%clk 0:00:02]} 49. Kb2 {[%clk 0:00:11]}  Rf2+ {[%clk 0:00:03]} 50. Kc3 {[%clk 0:00:11]}  Rf3+ {[%clk 0:00:03]} 51. Kb4 {[%clk 0:00:10]}  Rf4+ {[%clk 0:00:03]} 52. Kb5 {[%clk 0:00:11]}  Rxh4 {[%clk 0:00:04]} 53. Rd1 {[%clk 0:00:11]}  Re4 {[%clk 0:00:02]} 54. Rh1 {[%clk 0:00:10]}  Kxd6 {[%clk 0:00:03]} 55. Rxh7 {[%clk 0:00:10]}  Re5+ {[%clk 0:00:02]} 56. Kb6 {[%clk 0:00:10]}  Re3 {[%clk 0:00:02]} 57. Rh6+ {[%clk 0:00:10]}  Kd7 {[%clk 0:00:03]} 58. Rh7+ {[%clk 0:00:10]}  Kc8 {[%clk 0:00:04]} 59. Kc6 {[%clk 0:00:10]}  Rc3+ {[%clk 0:00:04]} 60. Kb6 {[%clk 0:00:11]}  Rxa3 {[%clk 0:00:04]} 61. Kc6 {[%clk 0:00:11]}  Rc3+ {[%clk 0:00:04]} 62. Kb6 {[%clk 0:00:12]}  a3 {[%clk 0:00:05]} 63. Ra7 {[%clk 0:00:12]}  Kd8 {[%clk 0:00:04]} 64. Kb5 {[%clk 0:00:12]}  Rc7 {[%clk 0:00:03]} 65. Rxa3 {[%clk 0:00:11]}  Rd7 {[%clk 0:00:02]} 66. Kc6 {[%clk 0:00:12]}  Rc7+ {[%clk 0:00:02]} 67. Kd6 {[%clk 0:00:12]}  Rd7+ {[%clk 0:00:02]} 68. Ke6 {[%clk 0:00:13]}  Re7+ {[%clk 0:00:03]} 69. Kf6 {[%clk 0:00:14]}  Rd7 {[%clk 0:00:03]} 70. Rh3 {[%clk 0:00:14]}  Kc7 {[%clk 0:00:03]} 71. Ke6 {[%clk 0:00:15]}  Rd6+ {[%clk 0:00:04]} 72. Ke5 {[%clk 0:00:16]}  Rc6 {[%clk 0:00:04]} 73. Rh7+ {[%clk 0:00:16]}  Kb6 {[%clk 0:00:04]} 74. Kd5 {[%clk 0:00:17]}  Rc5+ {[%clk 0:00:05]} 75. Kd4 {[%clk 0:00:17]}  Rc6 {[%clk 0:00:05]} 76. Rg7 {[%clk 0:00:18]}  Rd6+ {[%clk 0:00:05]} 77. Ke5 {[%clk 0:00:18]}  Rc6 {[%clk 0:00:05]} 78. Rg1 {[%clk 0:00:19]}  Rc5+ {[%clk 0:00:06]} 79. Kd6 {[%clk 0:00:19]}  Rc6+ {[%clk 0:00:06]} 80. Kd5 {[%clk 0:00:19]}  Rc5+ {[%clk 0:00:07]} 81. Kd4 {[%clk 0:00:20]}  Rc6 {[%clk 0:00:07]} 82. Rb1+ {[%clk 0:00:20]}  Kc7 {[%clk 0:00:08]} 83. Ke5 {[%clk 0:00:21]}  Rc5+ {[%clk 0:00:08]} 84. Kd4 {[%clk 0:00:21]}  Rc6 {[%clk 0:00:09]} 85. Ra1 {[%clk 0:00:21]}  Rd6+ {[%clk 0:00:09]} 86. Kc5 {[%clk 0:00:22]}  Rc6+ {[%clk 0:00:10]} 87. Kd5 {[%clk 0:00:22]}  Rd6+ {[%clk 0:00:10]} 88. Ke5 {[%clk 0:00:23]}  Rc6 {[%clk 0:00:10]} 89. Ra7+ {[%clk 0:00:24]}  Kb6 {[%clk 0:00:11]} 90. Rd7 {[%clk 0:00:24]}  Rc5+ {[%clk 0:00:11]} 91. Kd4 {[%clk 0:00:25]}  Rc6 {[%clk 0:00:11]} 92. Rd8 {[%clk 0:00:25]}  Kc7 {[%clk 0:00:10]} 93. Rh8 {[%clk 0:00:26]}  Rd6+ {[%clk 0:00:10]} 94. Kc5 {[%clk 0:00:26]}  Rc6+ {[%clk 0:00:11]} 95. Kd5 {[%clk 0:00:25]}  Rd6+ {[%clk 0:00:11]} 1/2-1/2


[Site "https://www.chess.com"]

[Event "Titled Tuesday Blitz November 07 Early 2023"]
[White "Spichkin, Alexander"]
[Black "carokannlover213"]
[WhiteFideId "4144074"]
[WhiteElo "2372"]
[BlackElo "2697"]
[Result "0-1"]
[Round "1"]
[TimeControl "180+1"]
[Date "2023.11.07"]
[WhiteClock "0:01:03"]
[BlackClock "0:00:30"]
[Board "132"]

1. f4 {[%clk 0:03:00]}  Nh6 {[%clk 0:02:56]} 2. e4 {[%clk 0:02:59]}  d5 {[%clk 0:02:55]} 3. d3 {[%clk 0:02:57]}  dxe4 {[%clk 0:02:25]} 4. Nc3 {[%clk 0:02:57]}  exd3 {[%clk 0:02:21]} 5. Bxd3 {[%clk 0:02:57]}  Bf5 {[%clk 0:02:19]} 6. Nf3 {[%clk 0:02:53]}  Bxd3 {[%clk 0:02:18]} 7. cxd3 {[%clk 0:02:53]}  e6 {[%clk 0:02:18]} 8. Qb3 {[%clk 0:02:53]}  b6 {[%clk 0:02:02]} 9. Ne5 {[%clk 0:02:51]}  Bd6 {[%clk 0:01:57]} 10. Qb5+ {[%clk 0:02:50]}  Kf8 {[%clk 0:01:58]} 11. O-O {[%clk 0:02:46]}  Nf5 {[%clk 0:01:52]} 12. Bd2 {[%clk 0:02:23]}  a6 {[%clk 0:01:32]} 13. Qb3 {[%clk 0:02:09]}  Nd7 {[%clk 0:01:27]} 14. Nc6 {[%clk 0:02:08]}  Qe8 {[%clk 0:01:26]} 15. d4 {[%clk 0:01:54]}  Nc5 {[%clk 0:01:23]} 16. dxc5 {[%clk 0:01:53]}  Bxc5+ {[%clk 0:01:24]} 17. Kh1 {[%clk 0:01:53]}  Qxc6 {[%clk 0:01:23]} 18. Na4 {[%clk 0:01:47]}  Bd6 {[%clk 0:01:08]} 19. Rac1 {[%clk 0:01:45]}  Qd5 {[%clk 0:01:05]} 20. Qd1 {[%clk 0:01:37]}  h5 {[%clk 0:00:53]} 21. Nc3 {[%clk 0:01:36]}  Qb7 {[%clk 0:00:51]} 22. Qe2 {[%clk 0:01:24]}  h4 {[%clk 0:00:50]} 23. Be1 {[%clk 0:01:25]}  Ng3+ {[%clk 0:00:37]} 24. Bxg3 {[%clk 0:01:18]}  hxg3 {[%clk 0:00:38]} 25. Ne4 {[%clk 0:01:17]}  Rxh2+ {[%clk 0:00:17]} 26. Kg1 {[%clk 0:01:17]}  Rd8 {[%clk 0:00:16]} 27. Rc3 {[%clk 0:01:14]}  Rh6 {[%clk 0:00:15]} 28. f5 {[%clk 0:01:07]}  Qd5 {[%clk 0:00:15]} 29. fxe6 {[%clk 0:01:07]}  Qd4+ {[%clk 0:00:15]} 30. Qe3 {[%clk 0:01:05]}  Qxe3+ {[%clk 0:00:15]} 31. Rxe3 {[%clk 0:01:06]}  Rxe6 {[%clk 0:00:16]} 32. Rfe1 {[%clk 0:01:02]}  Bc5 {[%clk 0:00:13]} 33. Nxc5 {[%clk 0:01:02]}  Rxe3 {[%clk 0:00:14]} 34. Rc1 {[%clk 0:01:01]}  bxc5 {[%clk 0:00:13]} 35. Kf1 {[%clk 0:01:01]}  Rde8 {[%clk 0:00:13]} 36. Rd1 {[%clk 0:01:01]}  Kg8 {[%clk 0:00:13]} 37. b3 {[%clk 0:01:01]}  Kh8 {[%clk 0:00:13]} 38. a4 {[%clk 0:00:59]}  Kh7 {[%clk 0:00:13]} 39. a5 {[%clk 0:00:59]}  c6 {[%clk 0:00:13]} 40. Rc1 {[%clk 0:00:59]}  Kh6 {[%clk 0:00:13]} 41. Rd1 {[%clk 0:01:00]}  g6 {[%clk 0:00:14]} 42. Rb1 {[%clk 0:01:00]}  Kg7 {[%clk 0:00:14]} 43. Rd1 {[%clk 0:01:00]}  R8e5 {[%clk 0:00:14]} 44. Rb1 {[%clk 0:01:00]}  Kf6 {[%clk 0:00:14]} 45. Rc1 {[%clk 0:01:00]}  Ke6 {[%clk 0:00:14]} 46. Rd1 {[%clk 0:00:59]}  Ke7 {[%clk 0:00:14]} 47. Rc1 {[%clk 0:00:59]}  Kd7 {[%clk 0:00:15]} 48. Rd1+ {[%clk 0:00:59]}  Kc7 {[%clk 0:00:15]} 49. Rc1 {[%clk 0:01:00]}  Rxb3 {[%clk 0:00:16]} 50. Ra1 {[%clk 0:00:57]}  Rbe3 {[%clk 0:00:16]} 51. Rd1 {[%clk 0:00:57]}  f6 {[%clk 0:00:16]} 52. Rc1 {[%clk 0:00:57]}  g5 {[%clk 0:00:17]} 53. Rd1 {[%clk 0:00:57]}  f5 {[%clk 0:00:17]} 54. Rc1 {[%clk 0:00:58]}  c4 {[%clk 0:00:18]} 55. Rd1 {[%clk 0:00:58]}  c5 {[%clk 0:00:18]} 56. Ra1 {[%clk 0:00:58]}  c3 {[%clk 0:00:19]} 57. Rb1 {[%clk 0:00:59]}  Kc6 {[%clk 0:00:19]} 58. Rc1 {[%clk 0:00:59]}  Kb5 {[%clk 0:00:19]} 59. Ra1 {[%clk 0:00:59]}  f4 {[%clk 0:00:19]} 60. Rc1 {[%clk 0:00:58]}  g4 {[%clk 0:00:19]} 61. Rb1+ {[%clk 0:00:59]}  Kc6 {[%clk 0:00:19]} 62. Rc1 {[%clk 0:00:59]}  Kc7 {[%clk 0:00:18]} 63. Rd1 {[%clk 0:00:59]}  f3 {[%clk 0:00:18]} 64. gxf3 {[%clk 0:00:58]}  gxf3 {[%clk 0:00:18]} 65. Rc1 {[%clk 0:00:58]}  c2 {[%clk 0:00:15]} 66. Ra1 {[%clk 0:00:58]}  Kc8 {[%clk 0:00:15]} 67. Rc1 {[%clk 0:00:58]}  Kd8 {[%clk 0:00:16]} 68. Ra1 {[%clk 0:00:58]}  Ke8 {[%clk 0:00:17]} 69. Rc1 {[%clk 0:00:58]}  Kf8 {[%clk 0:00:18]} 70. Ra1 {[%clk 0:00:59]}  Kg8 {[%clk 0:00:18]} 71. Rc1 {[%clk 0:00:59]}  Kh8 {[%clk 0:00:19]} 72. Ra1 {[%clk 0:01:00]}  c4 {[%clk 0:00:20]} 73. Rc1 {[%clk 0:01:00]}  Kg8 {[%clk 0:00:21]} 74. Ra1 {[%clk 0:01:01]}  Kf8 {[%clk 0:00:22]} 75. Rc1 {[%clk 0:01:01]}  Ke8 {[%clk 0:00:23]} 76. Ra1 {[%clk 0:01:01]}  Kd8 {[%clk 0:00:23]} 77. Rc1 {[%clk 0:01:02]}  Kc8 {[%clk 0:00:24]} 78. Ra1 {[%clk 0:01:02]}  c3 {[%clk 0:00:25]} 79. Rc1 {[%clk 0:01:03]}  Kd8 {[%clk 0:00:25]} 80. Ra1 {[%clk 0:01:02]}  Ke8 {[%clk 0:00:26]} 81. Rc1 {[%clk 0:01:02]}  Kf8 {[%clk 0:00:27]} 82. Ra1 {[%clk 0:01:02]}  Kg8 {[%clk 0:00:27]} 83. Rc1 {[%clk 0:01:02]}  Kh8 {[%clk 0:00:28]} 84. Ra1 {[%clk 0:01:03]}  Re1+ {[%clk 0:00:29]} 85. Rxe1 {[%clk 0:01:03]}  Rxe1+ {[%clk 0:00:30]} 86. Kxe1 {[%clk 0:01:03]}  c1=Q# {[%clk 0:00:30]} 0-1


[Site "https://www.chess.com"]

[Event "Titled Tuesday Blitz November 07 Early 2023"]
[White "Koellner, Ruben Gideon"]
[Black "spiritof_stlouis"]
[WhiteFideId "12993093"]
[WhiteElo "2696"]
[BlackElo "2371"]
[Result "0-1"]
[Round "1"]
[TimeControl "180+1"]
[Date "2023.11.07"]
[WhiteClock "0:00:11"]
[BlackClock "0:00:41"]
[Board "133"]

1. d4 {[%clk 0:03:00]}  Nf6 {[%clk 0:02:56]} 2. Nf3 {[%clk 0:03:00]}  c5 {[%clk 0:02:52]} 3. e3 {[%clk 0:03:00]}  g6 {[%clk 0:02:51]} 4. Nbd2 {[%clk 0:02:59]}  Bg7 {[%clk 0:02:51]} 5. dxc5 {[%clk 0:02:59]}  Qa5 {[%clk 0:02:49]} 6. a3 {[%clk 0:02:58]}  Qxc5 {[%clk 0:02:49]} 7. b4 {[%clk 0:02:59]}  Qc7 {[%clk 0:02:49]} 8. Bb2 {[%clk 0:03:00]}  O-O {[%clk 0:02:50]} 9. c4 {[%clk 0:03:00]}  Nc6 {[%clk 0:02:49]} 10. Be2 {[%clk 0:03:00]}  d6 {[%clk 0:02:48]} 11. O-O {[%clk 0:03:00]}  Bf5 {[%clk 0:02:46]} 12. Rc1 {[%clk 0:03:01]}  Rac8 {[%clk 0:02:43]} 13. Re1 {[%clk 0:03:01]}  Rfd8 {[%clk 0:02:43]} 14. h3 {[%clk 0:03:01]}  b6 {[%clk 0:02:39]} 15. Qb3 {[%clk 0:02:56]}  a5 {[%clk 0:02:34]} 16. Bc3 {[%clk 0:02:54]}  Qa7 {[%clk 0:02:15]} 17. Qb2 {[%clk 0:02:52]}  Rb8 {[%clk 0:02:10]} 18. Nd4 {[%clk 0:02:38]}  Nxd4 {[%clk 0:02:09]} 19. Bxd4 {[%clk 0:02:39]}  Ne8 {[%clk 0:02:04]} 20. Bxg7 {[%clk 0:02:37]}  Nxg7 {[%clk 0:02:05]} 21. Nf3 {[%clk 0:02:33]}  Qd7 {[%clk 0:01:58]} 22. Nd4 {[%clk 0:02:32]}  Be4 {[%clk 0:01:58]} 23. Red1 {[%clk 0:02:28]}  Rdc8 {[%clk 0:01:50]} 24. Bg4 {[%clk 0:02:25]}  f5 {[%clk 0:01:43]} 25. Be2 {[%clk 0:02:24]}  Ne6 {[%clk 0:01:42]} 26. Bf1 {[%clk 0:02:04]}  Kf7 {[%clk 0:01:37]} 27. Qa2 {[%clk 0:01:58]}  Nxd4 {[%clk 0:01:33]} 28. Rxd4 {[%clk 0:01:57]}  Qe6 {[%clk 0:01:30]} 29. Qd2 {[%clk 0:01:55]}  Kg7 {[%clk 0:01:18]} 30. bxa5 {[%clk 0:01:52]}  bxa5 {[%clk 0:01:17]} 31. Qxa5 {[%clk 0:01:52]}  Ra8 {[%clk 0:01:17]} 32. Qc3 {[%clk 0:01:52]}  Qf6 {[%clk 0:01:13]} 33. f3 {[%clk 0:01:44]}  Bc6 {[%clk 0:01:12]} 34. c5 {[%clk 0:01:43]}  dxc5 {[%clk 0:01:06]} 35. Qxc5 {[%clk 0:01:44]}  Bb7 {[%clk 0:01:04]} 36. Qb4 {[%clk 0:01:24]}  Rxc1 {[%clk 0:01:03]} 37. Qxb7 {[%clk 0:01:25]}  Rxa3 {[%clk 0:01:01]} 38. Rd7 {[%clk 0:00:54]}  Kf7 {[%clk 0:00:45]} 39. Kf2 {[%clk 0:00:15]}  Ra2+ {[%clk 0:00:44]} 40. Kg3 {[%clk 0:00:15]}  Rxf1 {[%clk 0:00:42]} 41. Rd8 {[%clk 0:00:12]}  Qg5+ {[%clk 0:00:41]} 42. Kh2 {[%clk 0:00:11]}  Rxg2# {[%clk 0:00:41]} 0-1


[Site "https://www.chess.com"]

[Event "Titled Tuesday Blitz November 07 Early 2023"]
[White "Can, Melih Kaan"]
[Black "Nasuta, Grzegorz"]
[WhiteFideId "6317383"]
[BlackFideId "1141686"]
[WhiteElo "2369"]
[BlackElo "2696"]
[Result "0-1"]
[Round "1"]
[TimeControl "180+1"]
[Date "2023.11.07"]
[WhiteClock "0:00:00"]
[BlackClock "0:00:11"]
[Board "134"]

1. d4 {[%clk 0:02:53]}  d5 {[%clk 0:02:58]} 2. Bf4 {[%clk 0:02:50]}  c5 {[%clk 0:02:58]} 3. c3 {[%clk 0:02:50]}  Nc6 {[%clk 0:02:57]} 4. e3 {[%clk 0:02:51]}  Bf5 {[%clk 0:02:55]} 5. Nd2 {[%clk 0:02:48]}  e6 {[%clk 0:02:41]} 6. Qb3 {[%clk 0:02:37]}  Qb6 {[%clk 0:02:40]} 7. dxc5 {[%clk 0:02:28]}  Bxc5 {[%clk 0:02:38]} 8. Ngf3 {[%clk 0:02:26]}  Nf6 {[%clk 0:02:32]} 9. Be2 {[%clk 0:02:21]}  h6 {[%clk 0:02:29]} 10. O-O {[%clk 0:02:21]}  O-O {[%clk 0:02:29]} 11. h3 {[%clk 0:02:21]}  Rfe8 {[%clk 0:02:26]} 12. Ne5 {[%clk 0:02:21]}  Nxe5 {[%clk 0:02:25]} 13. Bxe5 {[%clk 0:02:22]}  Nd7 {[%clk 0:02:24]} 14. Bd4 {[%clk 0:02:21]}  e5 {[%clk 0:01:59]} 15. Bxc5 {[%clk 0:02:16]}  Nxc5 {[%clk 0:02:00]} 16. Qxb6 {[%clk 0:01:48]}  axb6 {[%clk 0:02:00]} 17. Bb5 {[%clk 0:01:47]}  Red8 {[%clk 0:01:56]} 18. Nb3 {[%clk 0:01:45]}  Bc2 {[%clk 0:01:35]} 19. Nxc5 {[%clk 0:01:19]}  bxc5 {[%clk 0:01:36]} 20. Rfc1 {[%clk 0:01:19]}  Bf5 {[%clk 0:01:30]} 21. a3 {[%clk 0:01:16]}  f6 {[%clk 0:01:08]} 22. Rd1 {[%clk 0:01:16]}  Kf7 {[%clk 0:01:07]} 23. Rd2 {[%clk 0:01:15]}  Ra5 {[%clk 0:01:02]} 24. Be2 {[%clk 0:01:10]}  Be6 {[%clk 0:01:02]} 25. Rad1 {[%clk 0:01:09]}  Rb8 {[%clk 0:00:53]} 26. Bf3 {[%clk 0:01:09]}  e4 {[%clk 0:00:53]} 27. Be2 {[%clk 0:01:00]}  b5 {[%clk 0:00:52]} 28. f3 {[%clk 0:00:55]}  b4 {[%clk 0:00:37]} 29. axb4 {[%clk 0:00:43]}  cxb4 {[%clk 0:00:38]} 30. fxe4 {[%clk 0:00:34]}  bxc3 {[%clk 0:00:30]} 31. bxc3 {[%clk 0:00:35]}  dxe4 {[%clk 0:00:31]} 32. Rd4 {[%clk 0:00:32]}  f5 {[%clk 0:00:31]} 33. Rd6 {[%clk 0:00:27]}  Rc8 {[%clk 0:00:30]} 34. Bh5+ {[%clk 0:00:28]}  Ke7 {[%clk 0:00:29]} 35. Rb6 {[%clk 0:00:26]}  Rc7 {[%clk 0:00:19]} 36. Rdd6 {[%clk 0:00:24]}  Re5 {[%clk 0:00:17]} 37. Rdc6 {[%clk 0:00:21]}  Rxc6 {[%clk 0:00:16]} 38. Rxc6 {[%clk 0:00:22]}  Rd5 {[%clk 0:00:16]} 39. Kf2 {[%clk 0:00:19]}  Rd2+ {[%clk 0:00:16]} 40. Be2 {[%clk 0:00:15]}  Rc2 {[%clk 0:00:12]} 41. Ke1 {[%clk 0:00:13]}  Rc1+ {[%clk 0:00:11]} 42. Kf2 {[%clk 0:00:12]}  Bd7 {[%clk 0:00:10]} 43. Rc7 {[%clk 0:00:10]}  Kd6 {[%clk 0:00:11]} 44. Rc4 {[%clk 0:00:10]}  Rc2 {[%clk 0:00:11]} 45. Rd4+ {[%clk 0:00:09]}  Ke7 {[%clk 0:00:11]} 46. c4 {[%clk 0:00:09]}  Be6 {[%clk 0:00:11]} 47. Ke1 {[%clk 0:00:08]}  Rc1+ {[%clk 0:00:11]} 48. Kf2 {[%clk 0:00:08]}  Kf6 {[%clk 0:00:12]} 49. g3 {[%clk 0:00:07]}  g5 {[%clk 0:00:12]} 50. h4 {[%clk 0:00:04]}  Ke5 {[%clk 0:00:11]} 51. hxg5 {[%clk 0:00:04]}  hxg5 {[%clk 0:00:12]} 52. Rd8 {[%clk 0:00:03]}  Rc2 {[%clk 0:00:12]} 53. Ke1 {[%clk 0:00:02]}  Bxc4 {[%clk 0:00:12]} 54. Rc8 {[%clk 0:00:02]}  Rxe2+ {[%clk 0:00:11]} 55. Kd1 {[%clk 0:00:00]}  Rxe3 {[%clk 0:00:11]} 0-1


[Site "https://www.chess.com"]

[Event "Titled Tuesday Blitz November 07 Early 2023"]
[White "Fajdetic, Hrvoje"]
[Black "Akhmedinov, Satbek"]
[WhiteFideId "14501945"]
[BlackFideId "13714287"]
[WhiteElo "2362"]
[BlackElo "2691"]
[Result "0-1"]
[Round "1"]
[TimeControl "180+1"]
[Date "2023.11.07"]
[WhiteClock "0:00:02"]
[BlackClock "0:00:39"]
[Board "136"]

1. d4 {[%clk 0:02:53]}  Nf6 {[%clk 0:03:00]} 2. Bf4 {[%clk 0:02:52]}  e6 {[%clk 0:03:00]} 3. e3 {[%clk 0:02:53]}  d5 {[%clk 0:03:01]} 4. Nf3 {[%clk 0:02:53]}  Bd6 {[%clk 0:03:01]} 5. Bg3 {[%clk 0:02:52]}  O-O {[%clk 0:03:01]} 6. Bd3 {[%clk 0:02:52]}  c5 {[%clk 0:03:01]} 7. c3 {[%clk 0:02:52]}  Nc6 {[%clk 0:03:01]} 8. Nbd2 {[%clk 0:02:52]}  b6 {[%clk 0:02:59]} 9. e4 {[%clk 0:02:44]}  dxe4 {[%clk 0:02:55]} 10. Nxe4 {[%clk 0:02:45]}  Nxe4 {[%clk 0:02:52]} 11. Bxe4 {[%clk 0:02:46]}  Bb7 {[%clk 0:02:52]} 12. Qa4 {[%clk 0:01:54]}  Qc7 {[%clk 0:02:15]} 13. dxc5 {[%clk 0:01:44]}  bxc5 {[%clk 0:02:13]} 14. Bxh7+ {[%clk 0:01:20]}  Kxh7 {[%clk 0:01:57]} 15. Qh4+ {[%clk 0:01:17]}  Kg8 {[%clk 0:01:46]} 16. Ng5 {[%clk 0:01:15]}  Rfe8 {[%clk 0:01:41]} 17. Qh7+ {[%clk 0:00:38]}  Kf8 {[%clk 0:01:42]} 18. Bh4 {[%clk 0:00:31]}  Ne5 {[%clk 0:01:06]} 19. Ne4 {[%clk 0:00:06]}  Ng6 {[%clk 0:00:50]} 20. Nxd6 {[%clk 0:00:04]}  Qxd6 {[%clk 0:00:49]} 21. O-O {[%clk 0:00:04]}  Nxh4 {[%clk 0:00:48]} 22. Qxh4 {[%clk 0:00:04]}  Kg8 {[%clk 0:00:48]} 23. Rad1 {[%clk 0:00:03]}  Qe5 {[%clk 0:00:48]} 24. Rd3 {[%clk 0:00:02]}  Qe4 {[%clk 0:00:41]} 25. Qg3 {[%clk 0:00:02]}  Rad8 {[%clk 0:00:41]} 26. Re3 {[%clk 0:00:02]}  Qg6 {[%clk 0:00:40]} 27. Qh4 {[%clk 0:00:02]}  Qxg2# {[%clk 0:00:39]} 0-1


[Site "https://www.chess.com"]